bitfinex/quotes_SOLUSD_20250118
["timestamp","ask_amount","ask_price","bid_price","bid_amount"]
[1737179960047,33.30973637,225.88,225.8,4.4586]
[1737179961575,33.30973637,225.92,225.8,0.03]
[1737179961877,33.30973637,225.9,225.81,37.73823637]
[1737179962170,33.30973637,225.88,225.81,4.4285]
[1737179962376,33.30973637,225.88,225.8,4.4586]
[1737179962571,33.30973637,225.9,225.81,33.30973637]
[1737179963068,16.31613574,226.01,225.81,33.30973637]
[1737179963069,33.30973637,225.92,225.81,33.30973637]
[1737179963278,33.30973637,225.92,225.83,33.30973637]
[1737179963666,33.30973637,225.94,225.84,4.4279]
[1737179964179,33.30973637,225.9,225.82,4.4281]
[1737179964674,33.30973637,225.96,225.85,33.30973637]
[1737179965055,33.30973637,225.94,225.86,20.0]
[1737179965258,33.30973637,225.94,225.85,33.30973637]
[1737179965458,33.30973637,225.94,225.83,33.30973637]
[1737179965781,33.30973637,225.94,225.86,20.0]
[1737179966273,4.4241,226.03,225.9,20.0]
[1737179966478,33.30973637,225.99,225.89,33.30973637]
[1737179966773,33.30973637,225.99,225.92,20.0]
[1737179966966,33.30973637,226.01,225.92,20.0]
[1737179967172,33.30973637,226.09,226.01,20.0]
[1737179967362,33.30973637,226.09,225.98,33.30973637]
[1737179967363,33.30973637,226.11,226.03,20.0]
[1737179967878,33.30973637,226.09,226.0,33.30973637]
[1737179968177,35.58403637,226.16,225.87,9.0112]
[1737179968178,33.30973637,226.01,225.88,4.4271]
[1737179968387,33.30973637,225.94,225.84,33.30973637]
[1737179968768,33.30973637,225.92,225.82,33.30973637]
[1737179968965,33.30973637,225.9,225.81,4.4285]
[1737179969172,33.30973637,225.92,225.82,33.30973637]
[1737179969982,33.30973637,225.83,225.8,0.03]
[1737179970283,33.30973637,225.81,225.8,0.03]
[1737179970676,33.30973637,225.83,225.8,0.03]
[1737179970979,33.30973637,225.81,225.8,0.03]
[1737179972080,37.73823637,225.81,225.8,0.03]
[1737179972270,37.73823637,225.81,225.61,33.30973637]
[1737179972473,37.73823637,225.81,225.6,0.03]
[1737179972474,33.30973637,225.7,225.6,0.03]
[1737179972993,33.30973637,225.68,225.6,0.03]
[1737179973157,33.30973637,225.68,225.6,4.4624]
[1737179973582,33.30973637,225.7,225.6,4.4624]
[1737179973787,33.30973637,225.7,225.61,33.30973637]
[1737179974080,33.30973637,225.7,225.6,4.4624]
[1737179974287,33.30973637,225.64,225.6,0.03]
[1737179974461,66.61947274,225.61,225.6,0.03]
[1737179974779,20.0,225.58,225.39,37.74633637]
[1737179974960,33.30973637,225.47,225.39,4.4366]
[1737179975162,0.83169661,225.6,225.39,15.5284]
[1737179975385,33.30973637,225.53,225.44,33.30973637]
[1737179975687,33.30973637,225.55,225.46,33.30973637]
[1737179975888,33.30973637,225.57,225.46,33.30973637]
[1737179976394,33.30973637,225.59,225.48,33.30973637]
[1737179976566,33.30973637,225.61,225.5,33.30973637]
[1737179976768,33.30973637,225.61,225.52,33.30973637]
[1737179977067,33.30973637,225.63,225.54,33.30973637]
[1737179977374,33.30973637,225.63,225.52,33.30973637]
[1737179977577,33.30973637,225.63,225.55,20.0]
[1737179977971,33.30973637,225.63,225.57,20.0]
[1737179978283,33.30973637,225.61,225.5,33.30973637]
[1737179978487,33.30973637,225.59,225.46,15.5237]
[1737179978689,33.30973637,225.61,225.53,20.0]
[1737179978988,33.30973637,225.63,225.55,20.0]
[1737179979279,33.30973637,225.61,225.55,20.0]
[1737179979479,33.30973637,225.61,225.5,33.30973637]
[1737179979667,33.30973637,225.59,225.48,33.30973637]
[1737179979865,33.30973637,225.59,225.5,33.30973637]
[1737179980262,33.30973637,225.61,225.51,4.4343]
[1737179980582,0.83117519,225.7,225.51,4.4343]
[1737179980765,33.30973637,225.58,225.51,4.4343]
[1737179981770,4.4307,225.7,225.55,33.30973637]
[1737179982082,33.30973637,225.64,225.53,33.30973637]
[1737179982389,33.30973637,225.64,225.55,33.30973637]
[1737179982569,51.02993937,225.66,225.55,33.30973637]
[1737179982768,5.26154271,225.71,225.55,33.30973637]
[1737179982769,33.30973637,225.64,225.55,33.30973637]
[1737179982969,33.30973637,225.66,225.55,33.30973637]
[1737179983385,33.30973637,225.68,225.57,33.30973637]
[1737179983982,22.148462,225.71,225.57,33.30973637]
[1737179983983,33.30973637,225.66,225.57,33.30973637]
[1737179984174,33.30973637,225.66,225.55,33.30973637]
[1737179984484,33.30973637,225.72,225.51,1.77386315]
[1737179984485,64.53663637,225.83,225.51,1.77386315]
[1737179984691,33.30973637,225.61,225.51,4.4343]
[1737179984873,33.30973637,225.61,225.54,20.0]
[1737179985073,33.30973637,225.63,225.54,20.0]
[1737179985389,7.02,225.76,225.39,33.30973637]
[1737179985390,33.30973637,225.69,225.59,33.30973637]
[1737179985564,4.4293,225.77,225.61,20.0]
[1737179985767,33.30973637,225.7,225.61,20.0]
[1737179986163,33.30973637,225.72,225.63,20.0]
[1737179986371,33.30973637,225.74,225.66,15.51]
[1737179987197,33.30973637,225.68,225.62,4.4322]
[1737179987383,33.30973637,225.66,225.62,4.4322]
[1737179987712,33.30973637,225.64,225.54,4.4338]
[1737179987990,33.30973637,225.59,225.54,4.4338]
[1737179988169,33.30973637,225.55,225.5,4.4345]
[1737179988366,33.30973637,225.57,225.46,81.10973637]
[1737179988601,33.30973637,225.55,225.47,15.523]
[1737179988799,33.30973637,225.53,225.47,4.4351]
[1737179989088,33.30973637,225.49,225.39,4.4367]
[1737179989293,33.30973637,225.47,225.39,4.4367]
[1737179989494,33.30973637,225.51,225.4,33.30973637]
[1737179989663,33.30973637,225.53,225.45,20.0]
[1737179989872,33.30973637,225.53,225.42,33.30973637]
[1737179990191,34.14111629,225.61,225.44,33.30973637]
[1737179990494,33.30973637,225.55,225.39,22.1837]
[1737179990689,33.30973637,225.55,225.45,33.30973637]
[1737179990865,33.30973637,225.53,225.43,33.30973637]
[1737179991293,33.30973637,225.53,225.39,22.1837]
[1737179991492,33.30973637,225.53,225.43,33.30973637]
[1737179991796,2.215511,225.8,225.55,20.0]
[1737179991991,73.04492359,226.55,226.3,15.8355393]
[1737179992191,0.82786178,226.54,226.06,47.82]
[1737179992489,0.82786178,226.54,226.07,0.80885187]
[1737179992681,11.5822,226.52,225.82,22.43230187]
[1737179992990,14.85225377,226.51,225.89,13.23]
[1737179993173,14.85225377,226.51,225.91,22.23783344]
[1737179993492,37.5225,226.53,226.06,22.89407855]
[1737179993493,33.30973637,226.49,226.06,22.89407855]
[1737179993670,33.30973637,226.34,226.3,55.82667919]
[1737179993867,33.30973637,226.31,226.3,6.47463637]
[1737179994066,13.23,226.31,226.1,33.30973637]
[1737179994377,33.30973637,226.49,226.31,6.18500565]
[1737179994693,37.5309,226.48,226.16,22.86271306]
[1737179994898,220.99569564,226.41,226.09,22.0973336]
[1737179995085,220.99569564,226.41,226.08,18.32705854]
[1737179995389,33.30973637,226.15,226.08,18.32705854]
[1737179995597,33.30973637,226.16,226.09,26.29]
[1737179996177,33.30973637,226.16,226.02,33.30973637]
[1737179996380,33.30973637,226.08,225.96,33.30973637]
[1737179996704,33.30973637,226.1,225.96,33.30973637]
[1737179996889,33.30973637,226.1,225.98,33.30973637]
[1737179997086,33.30973637,226.1,226.0,26.3]
[1737179997475,33.30973637,226.08,226.0,26.3]
[1737179997676,33.30973637,226.04,226.0,26.3]
[1737179997891,38.65526034,226.06,226.0,26.3]
[1737179998100,5.34552397,226.06,225.96,33.30973637]
[1737179998284,5.34552397,226.06,225.97,26.3]
[1737179998601,5.34552397,226.06,225.98,33.30973637]
[1737179998795,5.34552397,226.06,226.0,33.30973637]
[1737179998989,5.34552397,226.06,226.02,33.30973637]
[1737179999480,10.5496861,226.05,225.98,33.30973637]
[1737180000198,10.61074013,226.05,225.98,33.30973637]
[1737180000396,33.30973637,226.03,225.92,33.30973637]
[1737180000597,20.0,226.02,225.86,4.4274]
[1737180000789,33.30973637,226.02,225.89,33.30973637]
[1737180000986,33.30973637,226.0,225.89,33.30973637]
[1737180001180,33.30973637,226.02,225.91,33.30973637]
[1737180001496,10.61074013,226.05,225.97,33.30973637]
[1737180001879,0.06105403,226.05,225.99,33.30973637]
[1737180002282,0.06105403,226.05,225.92,3.57]
[1737180002283,33.30973637,226.04,225.95,33.30973637]
[1737180002486,33.30973637,226.04,225.93,33.30973637]
[1737180002686,0.06105403,226.05,226.02,33.30973637]
[1737180002893,0.06105403,226.05,226.04,33.30973637]
[1737180003595,44.35843637,226.27,226.04,33.30973637]
[1737180003596,33.30973637,226.28,226.07,20.0]
[1737180003795,9.4018,226.31,226.07,20.0]
[1737180003796,33.23432277,226.27,226.21,33.30973637]
[1737180003999,33.23432277,226.27,226.25,33.30973637]
[1737180004603,33.23432277,226.27,226.25,55.13973637]
[1737180004786,33.23432277,226.27,226.25,59.55943637]
[1737180004980,33.23432277,226.27,226.26,33.30973637]
[1737180005178,11.0362,226.53,226.29,20.0]
[1737180005388,11.0337,226.58,226.39,33.30973637]
[1737180005593,33.30973637,226.46,226.36,33.30973637]
[1737180005802,17.661756,226.48,226.43,33.30973637]
[1737180005984,4.4117,226.67,226.47,33.30973637]
[1737180006187,33.30973637,226.66,226.54,33.30973637]
[1737180006405,4.4117,226.67,226.54,33.30973637]
[1737180006586,33.30973637,226.67,226.58,11.84946515]
[1737180006918,33.30973637,226.67,226.39,0.66234562]
[1737180006919,33.30973637,226.65,226.54,33.30973637]
[1737180007416,4.4745,226.68,226.39,0.66234562]
[1737180007417,33.30973637,226.61,226.39,0.66234562]
[1737180007620,33.30973637,226.59,226.31,15.4654]
[1737180007787,33.30973637,226.57,226.47,33.30973637]
[1737180008096,33.30973637,226.65,226.53,33.30973637]
[1737180008298,33.30973637,226.65,226.54,33.30973637]
[1737180008504,33.30973637,226.67,226.56,33.30973637]
[1737180008687,0.063,226.68,226.58,33.30973637]
[1737180008891,0.063,226.68,226.62,33.30973637]
[1737180009299,0.063,226.68,226.64,33.30973637]
[1737180009508,0.063,226.68,226.66,33.30973637]
[1737180010108,0.063,226.68,226.64,33.30973637]
[1737180010501,0.063,226.68,226.6,33.30973637]
[1737180010808,0.063,226.68,226.58,33.30973637]
[1737180011031,0.063,226.68,226.66,33.30973637]
[1737180011511,33.30973637,226.86,226.69,20.0]
[1737180011685,37.71783637,226.86,226.77,33.30973637]
[1737180012006,33.30973637,226.9,226.79,33.30973637]
[1737180012722,33.30973637,226.88,226.79,4.4093]
[1737180012920,33.30973637,226.88,226.79,33.30973637]
[1737180013223,33.30973637,226.9,226.79,33.30973637]
[1737180013424,33.30973637,226.92,226.79,33.30973637]
[1737180013617,218.4,226.98,226.79,33.30973637]
[1737180013787,37.71643637,226.93,226.79,33.30973637]
[1737180013993,35.33767209,226.92,226.79,35.33767209]
[1737180014289,35.33767209,226.98,226.79,70.67534418]
[1737180014493,35.33767209,227.0,226.9,35.33767209]
[1737180014708,35.33767209,226.93,226.83,35.33767209]
[1737180014893,35.33767209,226.93,226.81,35.33767209]
[1737180015096,4.4701,226.91,226.81,35.33767209]
[1737180015313,0.063,226.91,226.74,0.66138802]
[1737180015487,0.063,226.91,226.84,35.33767209]
[1737180015820,4.4072,226.9,226.8,35.33767209]
[1737180015988,0.063,226.91,226.73,15.4368]
[1737180016190,0.063,226.91,226.88,35.33767209]
[1737180016395,0.063,226.91,226.9,35.33767209]
[1737180017093,0.063,227.03,226.9,35.33767209]
[1737180017293,0.063,227.03,226.96,35.33767209]
[1737180017489,35.40067209,227.03,226.92,35.33767209]
[1737180017730,0.063,227.03,226.98,35.33767209]
[1737180017913,0.063,227.03,227.0,35.33767209]
[1737180018435,0.063,227.03,227.02,35.33767209]
[1737180018617,0.0001,227.03,227.02,35.33767209]
[1737180018796,0.0001,227.03,227.0,35.33767209]
[1737180019000,0.0001,227.03,226.87,11.0192]
[1737180019202,0.0001,227.03,226.98,35.33767209]
[1737180019443,35.33767209,227.02,226.92,35.33767209]
[1737180019605,35.33767209,227.02,226.9,35.33767209]
[1737180019811,35.33767209,227.0,226.83,4.4085]
[1737180020017,0.0001,227.03,226.88,35.33767209]
[1737180020206,35.33767209,226.96,226.73,4.4105]
[1737180020401,0.0001,227.03,226.95,35.33767209]
[1737180020609,0.0001,227.03,226.97,35.33767209]
[1737180021129,0.0001,227.03,227.01,35.33767209]
[1737180021437,0.0001,227.03,226.88,0.66072279]
[1737180021643,0.0001,227.03,227.02,35.33767209]
[1737180021817,0.0001,227.03,227.0,35.33767209]
[1737180022006,0.0001,227.03,226.96,35.33767209]
[1737180022208,0.0001,227.03,227.02,35.33767209]
[1737180022906,0.0001,227.03,227.02,39.74247209]
[1737180023306,39.73897209,227.21,227.05,20.0]
[1737180023510,35.33767209,227.23,227.13,35.33767209]
[1737180023726,35.33767209,227.19,227.09,35.33767209]
[1737180023924,35.33767209,227.21,227.11,35.33767209]
[1737180024139,35.33767209,227.21,227.05,20.0]
[1737180024140,35.33767209,227.21,227.09,35.33767209]
[1737180024322,35.33767209,227.21,227.11,35.33767209]
[1737180024932,35.33767209,227.19,227.09,35.33767209]
[1737180025418,35.33767209,227.19,226.98,11.67440615]
[1737180025629,35.33767209,227.15,227.05,35.33767209]
[1737180025831,35.33767209,227.15,226.9,22.0352]
[1737180025832,35.33767209,227.13,227.03,35.33767209]
[1737180026033,35.33767209,227.1,227.01,35.33767209]
[1737180026338,35.33767209,227.12,227.01,35.33767209]
[1737180026706,35.33767209,227.08,226.9,4.4072]
[1737180027026,35.33767209,227.1,227.0,35.33767209]
[1737180027216,35.33767209,227.14,227.04,35.33767209]
[1737180027422,37.3921,227.32,227.06,35.33767209]
[1737180027627,35.33767209,227.16,227.06,35.33767209]
[1737180028014,35.33767209,227.18,227.08,35.33767209]
[1737180028214,35.33767209,227.2,227.08,35.33767209]
[1737180028629,35.33767209,227.18,227.06,35.33767209]
[1737180028831,35.33767209,227.14,227.04,35.33767209]
[1737180029132,35.33767209,227.18,227.08,35.33767209]
[1737180029434,35.33767209,227.15,227.05,35.33767209]
[1737180030018,35.33767209,227.17,227.07,35.33767209]
[1737180030332,4.4006,227.24,227.13,35.33767209]
[1737180030541,35.33767209,227.29,227.19,35.33767209]
[1737180030718,15.3947,227.35,227.21,35.33767209]
[1737180030917,35.33767209,227.31,227.21,35.33767209]
[1737180031237,39.73697209,227.31,227.21,35.33767209]
[1737180031427,39.73697209,227.31,227.1,15.4116]
[1737180031428,4.3993,227.31,227.23,35.33767209]
[1737180031623,39.73697209,227.31,227.21,35.33767209]
[1737180031931,35.33767209,227.27,227.17,35.33767209]
[1737180032116,35.33767209,227.23,227.13,35.33767209]
[1737180032532,15.3974,227.31,227.17,35.33767209]
[1737180032716,1.75791892,227.45,227.3,35.33767209]
[1737180032911,35.33767209,227.43,227.32,35.33767209]
[1737180033130,4.3979,227.38,227.14,0.65975784]
[1737180033428,15.3927,227.38,227.13,11.0066]
[1737180033634,15.3927,227.38,227.16,20.0]
[1737180034435,15.3927,227.38,227.11,0.66004726]
[1737180034436,35.33767209,227.32,227.21,35.33767209]
[1737180034630,35.33767209,227.36,227.25,35.33767209]
[1737180035740,21.9807,227.48,227.27,35.33767209]
[1737180036035,35.33767209,227.34,227.23,35.33767209]
[1737180036532,35.33767209,227.32,227.21,35.33767209]
[1737180036733,35.33767209,227.36,227.25,35.33767209]
[1737180036932,35.33767209,227.38,227.27,35.33767209]
[1737180037333,35.33767209,227.36,227.23,4.4008]
[1737180037518,35.33767209,227.36,227.25,35.33767209]
[1737180037721,35.33767209,227.38,227.27,35.33767209]
[1737180038148,35.33767209,227.4,227.29,35.33767209]
[1737180038324,35.33767209,227.42,227.31,35.33767209]
[1737180038518,4.3938,227.59,227.39,20.0]
[1737180038756,35.33767209,227.48,227.39,20.0]
[1737180039260,35.33767209,227.5,227.4,39.73517209]
[1737180039632,35.33767209,227.55,227.44,35.33767209]
[1737180039968,4.394,227.58,227.41,35.33767209]
[1737180040126,35.33767209,227.52,227.41,35.33767209]
[1737180040464,35.33767209,227.56,227.47,35.33767209]
[1737180040822,0.063,227.76,227.55,20.0]
[1737180041019,0.063,227.76,227.55,0.65917676]
[1737180041219,35.33767209,227.83,227.73,35.33767209]
[1737180041638,4.3871,227.94,227.75,35.33767209]
[1737180041639,35.33767209,227.86,227.75,35.33767209]
[1737180041839,35.33767209,227.88,227.77,35.33767209]
[1737180042147,35.33767209,227.84,227.73,20.0]
[1737180042347,35.33767209,227.82,227.7,35.33767209]
[1737180042555,35.33767209,227.78,227.66,35.33767209]
[1737180042736,35.33767209,227.76,227.66,35.33767209]
[1737180042941,35.33767209,227.76,227.64,35.33767209]
[1737180043140,35.33767209,227.74,227.59,4.3937]
[1737180043461,35.33767209,227.74,227.55,0.65872878]
[1737180043462,35.33767209,227.68,227.56,35.33767209]
[1737180043630,35.33767209,227.72,227.62,35.33767209]
[1737180043953,233.3205,227.9,227.56,4.3942]
[1737180043954,35.33767209,227.74,227.56,4.3942]
[1737180044159,35.33767209,227.72,227.62,35.33767209]
[1737180044662,35.33767209,227.74,227.62,35.33767209]
[1737180044870,35.33767209,227.74,227.64,35.33767209]
[1737180045041,35.33767209,227.74,227.62,35.33767209]
[1737180045365,35.33767209,227.7,227.6,35.33767209]
[1737180045536,35.33767209,227.7,227.58,35.33767209]
[1737180045739,35.33767209,227.7,227.6,35.33767209]
[1737180045939,15.3662,227.77,227.53,4.395]
[1737180046140,35.33767209,227.6,227.49,35.33767209]
[1737180046456,35.33767209,227.58,227.47,35.33767209]
[1737180046638,61.07155886,227.77,227.5,35.33767209]
[1737180046840,59.27,227.77,227.54,35.33767209]
[1737180047269,20.0,227.74,227.42,15.3899]
[1737180047434,20.0,227.74,227.43,0.65910304]
[1737180047857,35.33767209,227.6,227.5,35.33767209]
[1737180048063,35.33767209,227.6,227.43,0.65910304]
[1737180048266,35.33767209,227.62,227.51,35.33767209]
[1737180048483,35.33767209,227.6,227.51,35.33767209]
[1737180048671,35.33767209,227.56,227.45,35.33767209]
[1737180048836,4.3923,227.67,227.47,35.33767209]
[1737180049044,35.33767209,227.57,227.45,35.33767209]
[1737180049278,35.33767209,227.57,227.47,35.33767209]
[1737180049456,35.33767209,227.61,227.49,35.33767209]
[1737180049845,35.33767209,227.55,227.45,35.33767209]
[1737180050052,35.33767209,227.47,227.36,35.33767209]
[1737180050262,35.33767209,227.64,227.3,1.72600107]
[1737180050461,35.33767209,227.5,227.38,35.33767209]
[1737180050751,35.33767209,227.48,227.41,20.0]
[1737180051052,35.33767209,227.44,227.34,35.33767209]
[1737180051259,35.33767209,227.5,227.38,35.33767209]
[1737180051565,35.33767209,227.46,227.35,35.33767209]
[1737180051873,35.33767209,227.48,227.37,35.33767209]
[1737180052253,35.33767209,227.48,227.4,20.0]
[1737180052453,35.33767209,227.48,227.38,4.3979]
[1737180052882,35.33767209,227.43,227.32,35.33767209]
[1737180053087,35.33767209,227.45,227.34,35.33767209]
[1737180053583,35.33767209,227.48,227.36,35.33767209]
[1737180053881,35.33767209,227.62,227.5,20.0]
[1737180054080,35.33767209,227.6,227.51,35.33767209]
[1737180054388,35.33767209,227.6,227.37,32.25309576]
[1737180054389,35.33767209,227.64,227.53,35.33767209]
[1737180054555,35.33767209,227.64,227.37,32.25309576]
[1737180054556,35.33767209,227.6,227.49,35.33767209]
[1737180054755,35.33767209,227.58,227.49,35.33767209]
[1737180054980,35.33767209,227.58,227.47,4.3961]
[1737180054981,35.33767209,227.62,227.51,35.33767209]
[1737180055288,35.33767209,227.58,227.48,35.33767209]
[1737180055458,35.33767209,227.56,227.44,35.33767209]
[1737180055656,35.33767209,227.64,227.44,35.33767209]
[1737180055657,35.33767209,227.54,227.44,35.33767209]
[1737180055857,35.33767209,227.54,227.47,20.0]
[1737180056053,35.33767209,227.54,227.44,35.33767209]
[1737180056354,35.33767209,227.54,227.47,20.0]
[1737180056551,35.33767209,227.52,227.47,20.0]
[1737180056757,35.33767209,227.49,227.38,4.3978]
[1737180056987,35.33767209,227.45,227.35,35.33767209]
[1737180057155,35.17138904,227.45,227.34,35.17138904]
[1737180057365,35.17138904,227.47,227.36,35.17138904]
[1737180057879,35.17138904,227.38,227.26,17.579362]
[1737180058068,35.17138904,227.43,227.31,35.17138904]
[1737180058271,35.17138904,227.37,227.25,39.57178904]
[1737180058499,48.11268904,227.5,227.24,0.03]
[1737180058796,20.0,227.46,227.24,0.03]
[1737180058972,20.0,227.45,227.24,0.03]
[1737180059174,20.0,227.44,227.24,0.03]
[1737180059769,35.17138904,227.25,227.24,0.03]
[1737180060204,70.34277808,227.25,227.24,0.0001]
[1737180060410,70.34277808,227.25,227.04,4.4044]
[1737180060684,70.55422134,227.22,227.01,35.27711067]
[1737180060883,70.55422134,227.22,226.98,0.03]
[1737180060884,35.27711067,227.06,226.98,0.03]
[1737180061465,35.27711067,227.06,226.98,4.4355]
[1737180061673,35.27711067,227.22,227.02,35.27711067]
[1737180061882,35.27711067,227.17,227.09,20.0]
[1737180062197,35.27711067,227.18,227.09,20.0]
[1737180062397,35.27711067,227.16,227.06,35.27711067]
[1737180062602,35.27711067,227.08,226.98,0.03]
[1737180062897,35.27711067,227.05,226.98,0.03]
[1737180063099,35.27711067,227.07,226.98,0.03]
[1737180063269,1.74560785,227.2,226.98,0.03]
[1737180063467,15.4042,227.21,226.98,0.03]
[1737180063772,37.4102,227.21,226.98,0.03]
[1737180063989,219.96437659,227.2,226.98,0.03]
[1737180064188,70.55422134,226.99,226.8,0.03]
[1737180064402,42.62116499,227.04,226.8,0.03]
[1737180064403,35.27711067,226.82,226.8,0.03]
[1737180064599,35.27711067,226.88,226.8,0.03]
[1737180064802,35.27711067,226.86,226.8,0.03]
[1737180065106,35.27711067,226.9,226.8,0.03]
[1737180065796,35.27711067,226.94,226.83,35.27711067]
[1737180066019,35.27711067,226.94,226.84,35.27711067]
[1737180066310,35.27711067,226.94,226.87,20.0]
[1737180066489,35.27711067,226.98,226.91,20.0]
[1737180066695,35.27711067,227.02,226.93,4.4066]
[1737180067017,35.27711067,226.98,226.88,35.27711067]
[1737180067179,35.27711067,226.98,226.91,20.0]
[1737180067380,35.27711067,226.98,226.88,35.27711067]
[1737180067805,11.0071,227.13,226.92,35.27711067]
[1737180067806,35.27711067,227.02,226.92,35.27711067]
[1737180068114,35.27711067,227.0,226.93,20.0]
[1737180068294,35.27711067,227.02,226.95,20.0]
[1737180068493,35.27711067,227.06,226.99,20.0]
[1737180068800,35.27711067,227.12,227.02,39.68191067]
[1737180068975,35.27711067,227.1,227.02,4.4048]
[1737180069180,15.4043,227.21,226.85,4.4081]
[1737180069388,35.27711067,227.04,226.88,20.0]
[1737180069696,35.27711067,227.05,226.96,35.27711067]
[1737180069897,35.27711067,227.09,226.99,35.27711067]
[1737180070205,4.4013,227.21,227.06,20.0]
[1737180070383,35.27711067,227.12,227.03,35.27711067]
[1737180070588,35.27711067,227.14,227.06,20.0]
[1737180070777,4.4011,227.22,227.08,20.0]
[1737180070982,35.27711067,227.22,227.14,20.0]
[1737180071383,0.0887631,227.15,227.14,20.0]
[1737180071582,0.0887631,227.15,227.07,50.69081067]
[1737180071812,35.27711067,227.12,227.03,4.4047]
[1737180072331,0.0887631,227.15,227.1,20.0]
[1737180072528,0.0887631,227.15,227.03,15.4164]
[1737180072826,0.0887631,227.15,226.98,11.0138]
[1737180073197,4.4911631,227.15,226.98,11.0138]
[1737180073398,0.0887631,227.15,226.98,11.0138]
[1737180073744,35.27711067,227.09,227.01,20.0]
[1737180074112,35.27711067,227.11,227.01,55.27711067]
[1737180074308,35.27711067,227.09,226.99,35.27711067]
[1737180075035,35.27711067,227.1,227.0,35.27711067]
[1737180075231,35.27711067,227.13,227.05,20.0]
[1737180075416,0.0887631,227.15,227.07,20.0]
[1737180075417,35.36587377,227.15,227.07,20.0]
[1737180075728,35.27711067,227.09,226.99,35.27711067]
[1737180076100,35.27711067,227.07,226.98,0.03]
[1737180076308,35.27711067,227.01,226.98,0.03]
[1737180076627,35.27711067,227.02,226.98,0.03]
[1737180076798,35.27711067,227.0,226.98,0.03]
[1737180077420,35.27711067,227.08,226.98,0.03]
[1737180077421,35.27711067,226.99,226.98,0.03]
[1737180079198,35.27711067,226.91,226.85,4.4081]
[1737180079404,35.27711067,226.97,226.91,20.0]
[1737180079817,4.4042,227.06,226.91,20.0]
[1737180080016,4.4042,227.06,226.85,4.4081]
[1737180080017,35.27711067,226.92,226.85,4.4081]
[1737180080220,35.27711067,226.89,226.85,4.4081]
[1737180081010,35.27711067,226.89,226.83,4.4085]
[1737180081507,35.27711067,226.85,226.81,4.4088]
[1737180081742,35.27711067,226.83,226.8,0.03]
[1737180081909,35.27711067,226.81,226.8,0.03]
[1737180082106,35.27711067,226.83,226.81,4.4089]
[1737180082447,35.27711067,226.83,226.8,4.439]
[1737180082735,35.27711067,226.81,226.8,0.03]
[1737180082941,35.27711067,226.83,226.8,4.4389]
[1737180083115,35.27711067,226.83,226.8,0.03]
[1737180083318,35.27711067,226.87,226.8,0.03]
[1737180083512,35.27711067,226.82,226.8,0.03]
[1737180083910,35.27711067,226.81,226.8,0.03]
[1737180084147,20.0,226.78,226.75,0.03]
[1737180084314,35.27711067,226.76,226.75,0.03]
[1737180086407,35.27711067,226.78,226.75,0.03]
[1737180086842,35.27711067,226.76,226.75,0.03]
[1737180087337,35.27711067,226.78,226.75,0.03]
[1737180087529,35.27711067,226.76,226.75,0.03]
[1737180087925,35.27711067,226.78,226.75,0.03]
[1737180088324,35.27711067,226.82,226.76,20.0]
[1737180088536,35.27711067,226.78,226.75,0.03]
[1737180088732,35.27711067,226.77,226.75,0.03]
[1737180088927,15.4253,226.9,226.75,0.03]
[1737180089228,35.27711067,226.88,226.81,20.0]
[1737180089540,35.27711067,226.88,226.83,20.0]
[1737180089843,35.27711067,226.9,226.83,20.0]
[1737180090335,10.571,227.05,226.87,20.0]
[1737180090336,35.27711067,226.94,226.87,20.0]
[1737180090720,35.27711067,226.96,226.89,20.0]
[1737180090926,35.27711067,226.92,226.82,35.27711067]
[1737180091250,0.09203194,226.83,226.8,35.27711067]
[1737180091553,6.731e-05,226.85,226.82,55.27711067]
[1737180091733,6.731e-05,226.85,226.84,35.27711067]
[1737180092139,6.731e-05,226.85,226.82,55.27711067]
[1737180092448,6.731e-05,226.85,226.79,15.4327]
[1737180092627,35.27711067,226.84,226.79,4.4093]
[1737180092944,6.731e-05,226.85,226.75,0.03]
[1737180092945,35.27711067,226.8,226.77,4.4096]
[1737180093246,35.27711067,226.8,226.75,0.03]
[1737180093623,35.27711067,226.82,226.75,0.03]
[1737180093935,6.731e-05,226.85,226.81,20.0]
[1737180094247,6.731e-05,226.85,226.78,35.27711067]
[1737180094248,6.731e-05,226.85,226.84,20.0]
[1737180094436,8.99e-05,226.88,226.87,20.0]
[1737180094619,0.092102,226.89,226.87,20.0]
[1737180094620,9.19e-05,226.89,226.87,20.0]
[1737180094817,9.19e-05,226.89,226.85,35.27711067]